Cogmind - Beta 12 @@@ ROGUE MODE // 2023.10.04 @ 17:36:28 Player: Trantor Result: Self-destructed Performance ------------- Evolutions (2) 1000 Regions Visited (6) 1200 Robots Destroyed (57) 285 Value Destroyed (1423) 1423 Prototype IDs (6) 120 Alien Tech Used (0) 0 Bonus (48) 48 TOTAL SCORE: 4076 Bonus ------- High Alert Combat Kills 13 Follower Combat Kills 67 Friendly Fire -32 Cogmind --------- Core Integrity 104/550 Matter 254/300 Energy 83/100 System Corruption 2% Temperature Cool (0) Movement Core (200) Ox3 Location -8/Storage Parts ------- > --- POWER (1) -------- (None) > --- PROPULSION (4) --- (None) > --- UTILITY (3) ------ Medium Storage Unit > --- WEAPON (3) ------- Makeshift Sword > --- INVENTORY (10) --- Faulty Improved VTOL Module High-capacity Matter Pod (200) Trap Scanner Light Armor Plating Hardlight Generator Shield Generator Shotgun EMP Blaster Peak State ------------ > --- POWER ------------ Light Ion Engine > --- PROPULSION ------- Airjet Combat Airjet Combat Airjet > --- UTILITY ---------- Medium Storage Unit Advanced Targeting Computer Medium Armor Plating > --- WEAPON ----------- Improved Assault Rifle Advanced EMP Blaster Makeshift Sword > --- INVENTORY -------- High-capacity Matter Pod Trap Scanner Light Armor Plating Hardlight Generator Shield Generator Shotgun EMP Blaster Rocket Launcher [Rating: 32] Favorites ----------- Power Ion Engine Engine Ion Engine Propulsion Light Treads Treads Light Treads Leg Aluminum Leg Hover Unit Combat Airjet Flight Unit Improved VTOL Module Utility Medium Storage Unit Device Heat Sink Storage Medium Storage Unit Processor Targeting Computer Protection Medium Armor Plating Weapon Autogun Energy Gun Small Laser Ballistic Gun Autogun Launcher Rocket Launcher Slashing Weapon Makeshift Sword Build | -11 -10 -10 -10 -9 -8 -8 ------- Run | Jun Mat Min Exi Min Mat Sto Slots Evolved 4 | . . . . . 4 . Power . | . . . . . . . Propulsion 2 | . . . . . 2 . Utility 1 | . . . . . 1 . Weapon 1 | . . . . . 1 . Parts Attached 52 | . 11 1 . 12 6 22 Power 6 | . . 1 . 2 . 3 Engine 6 | . . 1 . 2 . 3 Core . | . . . . . . . Reactor . | . . . . . . . Propulsion 10 | . 3 . . 2 2 3 Treads 4 | . 2 . . . 1 1 Leg 2 | . 1 . . . 1 . Wheel . | . . . . . . . Hover 3 | . . . . 2 . 1 Flight 1 | . . . . . . 1 Utility 13 | . 5 . . 1 2 5 Device 1 | . 1 . . . . . Storage 1 | . 1 . . . . . Processor 2 | . . . . . 1 1 Hackware . | . . . . . . . Protection 9 | . 3 . . 1 1 4 Artifact . | . . . . . . . Weapon 23 | . 3 . . 7 2 11 Energy Gun . | . . . . . . . Energy Cannon . | . . . . . . . Ballistic Gun 13 | . 3 . . 3 2 5 Ballistic Cannon . | . . . . . . . Launcher 7 | . . . . 3 . 4 Special Weapon . | . . . . . . . Impact Weapon . | . . . . . . . Slashing Weapon 3 | . . . . 1 . 2 Piercing Weapon . | . . . . . . . Special Melee Weapon . | . . . . . . . Unidentified Prototypes 4 | . . . . . . 4 Parts Lost 14 | . 1 . . 2 . 11 Power 2 | . . . . 1 . 1 Propulsion 4 | . . . . 1 . 3 Utility 4 | . 1 . . . . 3 Weapon 4 | . . . . . . 4 Highest Loss Streak 8 | . 1 . . 1 . 8 To Critical Strikes . | . . . . . . . Average Slot Usage (%) 95 | . 97 100 100 91 85 87 Engine 12 | . 14 14 14 13 9 7 Treads 16 | . 13 28 28 6 9 7 Leg 4 | . 14 . . . 9 5 Hover 7 | . . . . 20 18 18 Storage 12 | . 14 14 14 14 9 9 Processor 1 | . . . . . 7 7 Protection 11 | . 10 14 14 13 9 7 Ballistic Gun 24 | . 26 28 28 20 15 17 Naked Turns . | . . . . . . . Heaviest Build 31 | 12 28 28 28 29 29 31 Greatest Support 40 | 20 40 40 40 40 24 32 Greatest Overweight (x) 3 | . 1 . . 2 1 3 Average Overweight (x) . | . . . . . . . Largest Inventory Capacity 10 | . 10 10 10 10 10 10 Average Capacity 9 | . 9 10 10 10 10 10 Most Carried 10 | . 10 10 10 10 9 10 Average Carried 9 | . 9 9 10 9 7 9 Final Capacity 10 | 8 10 10 10 10 10 10 Final Carried 10 | 6 10 10 10 10 8 8 Class Distribution -------------------- 83% | Mutant 14% | Scavenger-Mutant Dominant Class ---------------- Mutant | -10/Materials Mutant | -10/Mines Mutant | -10/Exiles Mutant | -9/Mines Scavenger-Mutant | -8/Materials Scavenger-Mutant | -8/Storage Resources | -11 -10 -10 -10 -9 -8 -8 ----------- Run | Jun Mat Min Exi Min Mat Sto Matter Collected 1678 | 200 458 122 . 310 60 528 Remotely . | . . . . . . . Salvage Created 1775 | . 399 158 . 243 60 915 Parts 111 | . 25 9 . 15 4 58 Haulers Intercepted 6 | . 2 . . . . 4 Recyclers Shooed 1 | . . . . 1 . . Parts Field Recycled . | . . . . . . . Retrieved Matter . | . . . . . . . Parts Self-Destructed . | . . . . . . . Prevented . | . . . . . . . Kills | -11 -10 -10 -10 -9 -8 -8 ------- Run | Jun Mat Min Exi Min Mat Sto Combat Hostiles Destroyed 49 | . 11 7 . 11 1 19 Melee 1 | . . . . . . 1 Guns 35 | . 11 7 . 5 1 11 AOE 13 | . . . . 6 . 7 Classes Destroyed 10 | . 4 . . 4 . 2 Builder 2 | . . . . . . 2 Hauler 6 | . 2 . . . . 4 Recycler 1 | . . . . 1 . . Operator 1 | . 1 . . . . . Watcher 1 | . . . . . . 1 Swarmer 21 | . 6 5 . 4 . 6 Grunt 16 | . 5 2 . 2 . 7 Sentry 8 | . . . . 1 1 6 Demolisher 1 | . . . . 1 . . Assembled 3 | . . . . 3 . . Best Kill Streak 8 | . 6 3 . 4 1 8 Combat Bots Only 6 | . 6 3 . 4 1 6 Max Kills in Single Turn 3 | . 1 1 . 3 1 3 Gunslinging . | . . . . . . . Exploded 3 | . . . . 3 . 2 Melee 1 | . . . . . . 1 Uniques/NPCs Destroyed . | . . . . . . . Combat | -11 -10 -10 -10 -9 -8 -8 -------- Run | Jun Mat Min Exi Min Mat Sto Damage Taken 3094 | . 347 282 . 534 . 1931 Core 594 | . 55 24 . 69 . 446 Absorbed by Shields . | . . . . . . . Regen/Repaired (Parts) 37 | . . . . . . 37 Core Remaining (%) 70 | 100 . . . 40 . . Volleys Fired 120 | . 33 14 . 25 1 47 Largest 3 | . 2 2 . 2 3 3 Hottest 69 | . 46 46 . 46 69 69 Shots Fired 228 | . 66 28 . 43 3 88 Gun 214 | . 66 28 . 39 3 78 Cannon . | . . . . . . . Launcher 14 | . . . . 4 . 10 Special . | . . . . . . . Kinetic 214 | . 66 28 . 39 3 78 Thermal . | . . . . . . . Explosive 11 | . . . . 4 . 7 Electromagnetic 3 | . . . . . . 3 Robot Hit Streak 16 | . 10 10 . 10 3 16 Robot Miss Streak 4 | . 3 4 . 3 . 3 Penetration Max . | . . . . . . . Secondary Targets 5 | . 2 2 . 1 . . Max Gunslinging Chain 1 | . 1 1 . 1 . . Shots Hit Robots 153 | . 42 17 . 25 2 67 Core Hits 95 | . 24 8 . 17 2 44 Critical Kills 3 | . . 1 . . . 2 Critical Parts Destroyed 1 | . . . . . . 1 Critical Strikes 4 | . . 1 . . . 3 Destroy 4 | . . 1 . . . 3 Melee Attacks 12 | . . . . . . 12 Impact . | . . . . . . . Slashing 12 | . . . . . . 12 Piercing . | . . . . . . . Sneak Attacks 2 | . . . . . . 2 Combat Hostiles . | . . . . . . . Follow-up Attacks . | . . . . . . . Damage Inflicted 3626 | . 470 307 . 811 25 2013 Guns 2083 | . 467 307 . 379 25 905 Cannons . | . . . . . . . Explosions 1322 | . . . . 432 . 890 Melee 218 | . . . . . . 218 Ramming 3 | . 3 . . . . . Kinetic 2083 | . 467 307 . 379 25 905 Thermal . | . . . . . . . Explosive 1104 | . . . . 432 . 672 Electromagnetic 218 | . . . . . . 218 Impact . | . . . . . . . Slashing 218 | . . . . . . 218 Piercing . | . . . . . . . Highest Corruption 2 | . . . . . . 2 Average Corruption 2 | . . . . . . 2 Corruption Purged . | . . . . . . . Corruption Blocked . | . . . . . . . Effects 4 | . . . . . . 4 Energy Discharges 1 | . . . . . . 1 Parts Rejected 1 | . . . . . . 1 Misfires 2 | . . . . . . 2 Overload Shots . | . . . . . . . Overflow Damage 106 | . . . . 5 . 101 Projectiles . | . . . . . . . Explosions 70 | . . . . 5 . 65 Melee 36 | . . . . . . 36 Knockbacks . | . . . . . . . Impact . | . . . . . . . Kinetic . | . . . . . . . Secondary . | . . . . . . . Self-Inflicted Damage 138 | . . . . 45 . 93 Shots 6 | . . . . 2 . 4 Rammed 1 | . 1 . . . . . Targets Rammed 1 | . 1 . . . . . Kicked . | . . . . . . . Crushed . | . . . . . . . Highest Temperature 68 | . 60 68 . 31 22 44 Average Temperature 17 | . 21 24 . 11 12 13 Received Heat Transfer 984 | . 123 78 . 126 . 657 Siege Activations . | . . . . . . . Robots Corrupted . | . . . . . . . Combat Hostiles . | . . . . . . . Parts Fried . | . . . . . . . Impact Corruptions . | . . . . . . . Robots Melted . | . . . . . . . Combat Hostiles . | . . . . . . . Parts Melted . | . . . . . . . Heat Transferred . | . . . . . . . Parts Sabotaged . | . . . . . . . Parts Stolen . | . . . . . . . Parts Stripped . | . . . . . . . Power Chain Reactions 1 | . . . . . . 1 Missiles Intercepted . | . . . . . . . Alert | -11 -10 -10 -10 -9 -8 -8 ------- Run | Jun Mat Min Exi Min Mat Sto Peak Influence 514 | . 268 194 . 160 73 514 Initial 33 | . . 33 . . 13 30 Average 105 | . 124 20 . 26 32 258 Maximum Alert Level 2 | . 1 . . . . 2 Low Security (%) 78 | . 78 100 . 100 100 31 Level 1 19 | . 21 . . . . 56 Level 2 2 | . . . . . . 11 Level 3 . | . . . . . . . Level 4 . | . . . . . . . Level 5 . | . . . . . . . High Security . | . . . . . . . Max Security . | . . . . . . . Squads Dispatched 6 | . 2 2 . . . 2 Investigation 3 | . 1 1 . . . 1 Extermination . | . . . . . . . Reinforcement 2 | . 1 . . . . 1 Assault 1 | . . 1 . . . . Garrison . | . . . . . . . Intercept . | . . . . . . . Searches Triggered . | . . . . . . . Construction Impeded . | . . . . . . . Haulers Reinforced . | . . . . . . . Active Scanning Responses . | . . . . . . . Cargo Convoy Interrupts . | . . . . . . . Stealth | -11 -10 -10 -10 -9 -8 -8 --------- Run | Jun Mat Min Exi Min Mat Sto Distress Signals 3 | . . . . . . 3 Communications Jammed . | . . . . . . . Distress Signals . | . . . . . . . Times Spotted 94 | . 23 10 . 19 4 38 Peak Tracking Total 13 | . 6 4 . 13 3 13 Tactical Retreats 8 | . 2 . . . . 6 Traps | -11 -10 -10 -10 -9 -8 -8 ------- Run | Jun Mat Min Exi Min Mat Sto Traps Triggered 2 | . 1 . . . . 1 Indirectly . | . . . . . . . Trap Hack Attempts . | . . . . . . . Triggered . | . . . . . . . Disarmed . | . . . . . . . Reprogrammed . | . . . . . . . Reused . | . . . . . . . Traps Extracted . | . . . . . . . Installed . | . . . . . . . Triggered . | . . . . . . . Machines | -11 -10 -10 -10 -9 -8 -8 ---------- Run | Jun Mat Min Exi Min Mat Sto Machines Disabled 7 | . . 2 . 1 . 4 Max in Single Turn 1 | . . 1 . 1 . 1 Machines Repaired . | . . . . . . . Machines Sabotaged . | . . . . . . . Overloaded Fab Kills . | . . . . . . . Hacking | -11 -10 -10 -10 -9 -8 -8 --------- Run | Jun Mat Min Exi Min Mat Sto Machines Accessed 19 | . 8 1 4 . . 6 Terminals 12 | . 7 . . . . 5 Fabricators . | . . . . . . . Repair Stations 1 | . . . . . . 1 Recycling Units 1 | . 1 . . . . . Scanalyzers . | . . . . . . . Garrison Access . | . . . . . . . Total Hacks 52 | . 32 1 4 . . 15 Successful 24 | . 12 1 4 . . 7 Failed 28 | . 20 . . . . 8 Catastrophic 6 | . 5 . . . . 1 Database Lockouts . | . . . . . . . Manual 25 | . 19 . . . . 6 Terminals 44 | . 31 . . . . 13 Fabricators . | . . . . . . . Repair Stations 2 | . . . . . . 2 Recycling Units 1 | . 1 . . . . . Scanalyzers . | . . . . . . . Garrison Access . | . . . . . . . Terminal Hacks 16 | . 8 1 4 . . 3 Record 5 | . 1 . 4 . . . Part Schematic 2 | . 1 . . . . 1 Robot Analysis 2 | . 2 . . . . . Prototype ID Bank 1 | . . . . . . 1 Open Door 2 | . . 1 . . . 1 Locate Traps 2 | . 2 . . . . . Recall Investigation 1 | . 1 . . . . . Registered Prototypes 1 | . 1 . . . . . Fabricator Hacks . | . . . . . . . Repair Station Hacks 2 | . . . . . . 2 Scan Component 1 | . . . . . . 1 Repair 1 | . . . . . . 1 Recycling Unit Hacks 1 | . 1 . . . . . Report Inventory 1 | . 1 . . . . . Scanalyzer . | . . . . . . . Garrison Access Hacks . | . . . . . . . Unauthorized Hacks 5 | . 3 . . . . 2 Terminals 5 | . 3 . . . . 2 Botnet 5 | . 3 . . . . 2 Fabricators . | . . . . . . . Repair Stations . | . . . . . . . Recycling Units . | . . . . . . . Scanalyzers . | . . . . . . . Garrison Access . | . . . . . . . Data Cores Recovered 1 | . 1 . . . . . Used . | . . . . . . . Hacking Detections 11 | . 7 . . . . 4 Full Trace Events 1 | . . . . . . 1 Feedback Events . | . . . . . . . Feedback Blocked . | . . . . . . . Robot Schematics Acquired . | . . . . . . . Robots Built . | . . . . . . . Authchips . | . . . . . . . Time . | . . . . . . . Total Robot Build Rating . | . . . . . . . Part Schematics Acquired 2 | . 1 . . . . 1 Parts Built . | . . . . . . . Authchips . | . . . . . . . Time . | . . . . . . . Total Part Build Rating . | . . . . . . . Parts Repaired 1 | . . . . . . 1 Time 26 | . . . . . . 26 Parts Recycled . | . . . . . . . Recycled Matter . | . . . . . . . Retrieved Matter . | . . . . . . . Retrieved Components . | . . . . . . . Parts Scanalyzed . | . . . . . . . Part Schematics Acquired . | . . . . . . . Parts Damaged . | . . . . . . . Bothacking | -11 -10 -10 -10 -9 -8 -8 ------------ Run | Jun Mat Min Exi Min Mat Sto Used RIF Installer . | . . . . . . . Robots Hacked . | . . . . . . . Non-combat . | . . . . . . . Combat . | . . . . . . . Robot Hacks Applied . | . . . . . . . Relay Couplers Released . | . . . . . . . Fabnet Peak Effective % . | . . . . . . . Robots Rewired . | . . . . . . . Allies Hacked . | . . . . . . . Hacks Repelled . | . . . . . . . Allies | -11 -10 -10 -10 -9 -8 -8 -------- Run | Jun Mat Min Exi Min Mat Sto Total Allies 5 | . . 2 . 3 . . Largest Group 3 | . . 1 1 3 . . Highest-Rated Group 40 | . . 31 31 40 . . Highest-Rated Ally 31 | . . 31 31 16 . . Total Orders . | . . . . . . . Ally Attacks 17 | . . 13 . 4 . . Total Damage 235 | . . 214 . 21 . . Kills 3 | . . 3 . . . . Allies Corrupted . | . . . . . . . Allies Melted . | . . . . . . . Intel | -11 -10 -10 -10 -9 -8 -8 ------- Run | Jun Mat Min Exi Min Mat Sto Robot Analysis Total 2 | . 2 . . . . . Derelict Logs Recovered 2 | . . 1 . 1 . . Drone Launches . | . . . . . . . Drone Recoveries . | . . . . . . . Exploration | -11 -10 -10 -10 -9 -8 -8 ------------- Run | Jun Mat Min Exi Min Mat Sto Turns Passed 5141 | . 1231 1092 921 857 88 952 Spaces Moved 3391 | 1 708 656 576 773 66 611 Core 7 | . . . . . . 7 Treads 1692 | . 317 656 576 98 . 45 Legs 392 | 1 391 . . . . . Wheels . | . . . . . . . Hover 1300 | . . . . 675 66 559 Flight . | . . . . . . . Fastest Speed 66 | 120 120 160 160 77 107 66 Average Speed 133 | 120 147 160 160 98 113 108 Slowest Speed 240 | 120 190 160 160 240 177 240 Overloaded Moves . | . . . . . . . Propulsion Burnouts . | . . . . . . . Robots Hopped . | . . . . . . . Cave-ins Triggered . | . . . . . . . Exploration Rate (%) 69 | 2 99 99 94 101 8 83 Regions Visited 6 Branch Regions 4 Pre-discovered Areas . | . . . . . . . Known Exits Taken 1 | . . . . . 1 . Unknown Exits Taken 5 | 1 1 1 1 1 . . Scrap Searched 4 | . . 2 . 2 . . Spaces Dug 3 | . . . . . . 3 Terrain Destroyed 101 | . . . . 39 . 62 Melee 3 | . . . . . . 3 Projectile . | . . . . . . . AOE 98 | . . . . 39 . 59 Terrain Rammed . | . . . . . . . Walls Destroyed . | . . . . . . . Machines Disabled . | . . . . . . . Actions | -11 -10 -10 -10 -9 -8 -8 --------- Run | Jun Mat Min Exi Min Mat Sto Total 3830 | . 838 679 575 837 77 824 Wait 187 | . 58 2 . 16 2 109 Move 3385 | . 707 655 575 772 65 611 Hop . | . . . . . . . Pick Up 27 | . 12 3 . 2 2 8 Fast Attach 15 | . 6 . . 4 . 5 Attach 18 | . . . . 4 5 9 Detach 10 | . 2 . . 4 1 3 Swap 19 | . 5 1 . 4 1 8 Drop 36 | . 14 4 . 6 . 12 Fire 120 | . 33 14 . 25 1 47 Melee 12 | . . . . . . 12 Ram . | . . . . . . . Kick . | . . . . . . . Crush 1 | . 1 . . . . . Escape Stasis . | . . . . . . . Rewire . | . . . . . . . Trap . | . . . . . . . Miscellaneous . | . . . . . . . Route ------- -11/Junkyard -10/Materials (discovered 5 exits: [*Mat x3] / *Min x2) -10/Mines (discovered 3 exits: [*Mat x2] / *Exi) -10/Exiles (discovered 2 exits: [*Min x2]) -9/Mines (discovered 2 exits: [*Mat x2]) -8/Materials (discovered 2 exits: Fac / *Sto) -8/Storage (discovered 1 exit: *Fac) History --------- Turn | Location | Event 1 | -11/Junkyard | Discovered new exit (range 0) 1 | -11/Junkyard | Entered Materials 207 | -10/Materials | Discovered new exit (range 3) 313 | -10/Materials | Build established: Mutant 545 | -10/Materials | Discovered new exit (range 14) 728 | -10/Materials | Discovered new exit (range 13) 856 | -10/Materials | Discovered new exit (range 11) 1103 | -10/Materials | Discovered new exit (range 15) 1232 | -10/Materials | Entered Mines 1235 | -10/Mines | Met a Derelict shopkeep closing up shop 1285 | -10/Mines | Received a Rocket Launcher from a helpful Derelict 1354 | -10/Mines | Discovered new exit (range 12) 1476 | -10/Mines | A weapon hastily lodged in a ceiling crevice suddenly fell to the ground 1517 | -10/Mines | Met a Derelict testing a Signal Generator 1921 | -10/Mines | Learned location of 1 exit from Materials 1957 | -10/Mines | Deemed a non-threat by the Exiles lab entrance 1958 | -10/Mines | Discovered new exit (range 5) 2119 | -10/Mines | Discovered new exit (range 15) 2128 | -10/Mines | Received a Mining Laser from a helpful Derelict 2218 | -10/Mines | Found a damaged Exp. Sensor Array with a note attached 2324 | -10/Mines | Entered Exiles 2324 | -10/Exiles | Found Exiles lab abandoned 2324 | -10/Exiles | Accompanied by 1 ally 2348 | -10/Exiles | Discovered new exit (range 15) 3230 | -10/Exiles | Discovered new exit (range 10) 3245 | -10/Exiles | Entered Mines 3357 | -9/Mines | Assembled infested the area 3362 | -9/Mines | Assisted by a Guerilla fighting off Assembled 3670 | -9/Mines | Discovered new exit (range 12) 3748 | -9/Mines | Discovered new exit (range 12) 3894 | -9/Mines | Learned 2 Materials zone layouts 4003 | -9/Mines | Assisted by bots powering up and referring to "LRC-V3" 4041 | -9/Mines | Core integrity fell below 50% 4102 | -9/Mines | Entered Materials 4102 | -8/Materials | Evolved 4 slots: Propulsion x2, Utility x1, Weapon x1 4103 | -8/Materials | Identified exit to Factory 4104 | -8/Materials | Identified exit to Storage 4190 | -8/Materials | Entered Storage 4721 | -8/Storage | Repaired Lgt. Armor Plating 4936 | -8/Storage | Discovered exit to Factory (range 6) 5047 | -8/Storage | Core integrity fell below 50% 5100 | -8/Storage | Lost 8 parts (1p2n2u3w) 5138 | -8/Storage | Core integrity fell below 20% 5142 | -8/Storage | Self-destructed Last Messages --------------- 05041_ Door malfunctions. 05041_ G-47 Trooper destroyed. 05042_ K-01 Serf collects debris. 05043_ Y-45 Defender suffers critical hit (Burn). 05046_ Adv. EMP Blaster destroyed. 05047_ K-01 Serf collects debris. 05069_ Imp. Assault Rifle destroyed. 05071_ R-06 Scavenger inserts Heat Sink into recycling unit. 05108_ R-06 Scavenger inserts Lgt. Treads into recycling unit. 05112_ R-06 Scavenger inserts Prototype Flight Unit into recycling unit. 05118_ Sneak attack on A-02 Transporter. 05118_ A-02 Transporter destroyed. 05120_ K-01 Serf collects debris. 05121_ Acquired Prototype Flight Unit. 05121_ Identified Imp. VTOL Module. 05121_ Malfunction: Energy drain (-78). 05124_ K-01 Serf collects debris. 05128_ System corrupted: Cmb. Airjet rejected. 05129_ R-06 Scavenger collects Lgt. Assault Rifle. 05132_ R-06 Scavenger collects Drone Bay. Map ----- +----------------------------------------------------+ | | | | | | | | | | | ####?????????????????????????????????????????????? | | #?????????????????????????????????????????????? | | " #????????#####????????????????????????????????? | | " #????????#"""#??????????????????#?????????????? | | " #????????#"R"#?????????????????# ###??????????? | | #???????##" "#####????????????? #??????????? | | " #???????# #????????????" #??????????? | | " #???????# #??????????""" #??????????? | | " ##??????# #?????????#""" #??????????? | | #??????# """ #?????????#""" ######?????? | | ############ """ ##????????#""" ! ## #?????? | | % """"" # """ #????????# ## #?????? | | ""T"" + """ ##????????# ## #?????? | | !! # """ ^^ ###???????# ## ######? | | =!! # # #####???# ## ##! !#? | | """"" !* ###"T"#### ########? =%! ??# ##! !#? | | """""! = ############## ####+##### ##! !#? | | """"" ==! * [[=[! ## !#? | | %= !=% = == =[ [* ### ##? | | !== [ ![= + T#? | | #######"################@ ########### ## ##? | | # #???# # ## #### ! #?# ######?? | | # #???##### # # # ##?# """"#?# #??????? | | # #???????#######+#### """"#?# #??????? | | # """ """ ""#??????# = # """"#?# #??????? | | + """ """ Y"#??????# "" "" # """"#?# #??????? | | # """ """ ""#??????# "!| " # #?# #??????? | | # ###??????# "" "" # """"#?# #??????? | | # #????????# """ " # """"#?# #??????? | | ######### #????????# "!! " # """"###+#######? | | ##???????##????????# """ " # """"## #? | | #?????????????????# # ## #? | | #???????????????#########+######+#+### #? | | #???????????????# ^ # #? | | #???????????????# + #? | | #???????????????# # #? | | ##???????????????################+##### #? | | #?????????????????????????????? ??# #? | | #????????????????????????????""" """ ## #? | | #??????????????????????????# """ """ ###########? | | #??????????????????????????# """ """ #??????????? | | #??????????????????????????# #??????????? | | #??????????????????????????? #??????????? | | #??????????????????????????? = #??????????? | | ####???????????????????????# ???????????? | +----------------------------------------------------+ Best States ------------- Heat Dissipation 35 Energy Generation 10 Energy Capacity 250 Matter Stores 300 Matter Capacity 300 Sight Range 16 Terrain Scan Density 10 Armor Coverage 225 Evasion (%) 55 Targeting Accuracy 8 Recoil Reduction 2 Item Schematics ----------------- Med. Storage Unit | -10/Materials | Hacked Reactive Plating | -8/Storage | Hacked Robot Schematics ------------------ None Fabricated ------------ Nothing Alien Tech Used ----------------- None Achievements -------------- None Challenges ------------ None Game ------ Seed MasterFieldRailgun Manual? 0 Play Time 00:47:37 Cumulative 251.0 hours Start 2023.10.03 @ 17:45:45 End 2023.10.04 @ 17:36:28 Sessions 4 Manual Loads 0 Difficulty Rogue Special Mode None Game No. 140 Rogue 96 Adventurer 44 Explorer 0 Win Type - Total 2 Types 2/0/0/0/0/0/0/0/0 Lore% 60 Gallery% 63 Achievement% 57 Wizard Run 0 Options --------- ASCII 0 Keyboard 1 Movement Vi Keybinds 1 Fullscreen 2 Font 18/X11Bold Map View 76x50 Tactical HUD 1 Map Filters NONE Filters NONE Steam 1 RUN: 682d3701-7ae8-4e3b-81e5-d1c8504d67f6